[Event "1000GM Winter GM Norm-2 2024"]
[Site "Sunnyvale/"]
[Date "2024.01.03"]
[Round "2.9"]
[White "Galyas, Miklos"]
[Black "Nathan, Nitish"]
[Result "1/2-1/2"]
[ECO "A11"]
[WhiteElo "2423"]
[BlackElo "2190"]
[Annotator "RC"]
[PlyCount "83"]
[EventDate "2023.12.14"]
[EventType "schev"]
[EventCountry "USA"]
[SourceTitle "playchess.com"]
[Source "ChessBase"]
[SourceQuality "1"]
[TimeControl "5400+30"]

1. c4 {[%emt 0:00:01]} c6 {[%emt 0:00:04]} 2. Nf3 {[%emt 0:00:20]} Nf6 {[%emt 0:00:15]} 3. g3 {[%emt 0:00:13]} d5 {[%emt 0:01:21]} 4. Bg2 {[%emt 0:00:08]} Bf5 {[%emt 0:02:39]} 5. Qb3 {[%emt 0:00:19]} Qb6 {[%emt 0:01:23]} 6. d3 {[%emt 0:00:29]} e6 {[%emt 0:02:29]} 7. Be3 {[%emt 0:00:10]} Qxb3 {[%emt 0:05:28]} 8. axb3 {[%emt 0:00:01]} a6 {[%emt 0:00:46]} 9. Nh4 {[%emt 0:00:32]} Bg6 {[%emt 0:02:38]} 10. Nxg6 {[%emt 0:00:08]} hxg6 {[%emt 0:00:06]} 11. Nc3 {[%emt 0:01:39]} Nbd7 {[%emt 0:01:10]} 12. d4 {[%emt 0:05:55]} Be7 {[%emt 0:02:02]} 13. Bf4 {[%emt 0:03:51]} O-O {[%emt 0:01:47]} 14. O-O {[%emt 0:00:34]} Rfe8 {[%emt 0:02:05]} 15. Rad1 {[%emt 0:15:35]} Nb6 {[%emt 0:02:45]} 16. c5 {[%emt 0:15:39]} Nbd7 {[%emt 0:00:08]} 17. b4 {[%emt 0:00:22]} Rac8 {[%emt 0:02:00]} 18. Rfe1 {[%emt 0:03:34]} Bd8 {[%emt 0:03:35]} 19. e3 {[%emt 0:11:04]} Bc7 {[%emt 0:00:48]} 20. Bxc7 {[%emt 0:00:06]} Rxc7 {[%emt 0:00:09]} 21. f4 {[%emt 0:00:12]} Rcc8 {[%emt 0:06:16]} 22. Bf3 {[%emt 0:00:40]} Kf8 {[%emt 0:05:16]} 23. g4 {[%emt 0:01:08]} Ng8 {[%emt 0:01:12]} 24. e4 {[%emt 0:04:48]} f5 {[%emt 0:07:23]} 25. exd5 {[%emt 0:00:53]} exd5 {[%emt 0:00:45]} 26. g5 {[%emt 0:00:20]} Rxe1+ {[%emt 0:02:27]} 27. Rxe1 {[%emt 0:00:06]} Ne7 {[%emt 0:02:02]} 28. Ne2 {[%emt 0:09:49]} Re8 {[%emt 0:04:19]} 29. Nc1 {[%emt 0:00:58]} Nc8 {[%emt 0:01:07]} 30. Rxe8+ {[%emt 0:02:09]} Kxe8 {[%emt 0:00:09]} 31. Kf2 {[%emt 0:00:42]} Ne7 {[%emt 0:01:33]} 32. Ke3 {[%emt 0:00:08]} Kd8 {[%emt 0:06:17]} 33. h4 {[%emt 0:00:31]} Kc7 {[%emt 0:01:56]} 34. Be2 {[%emt 0:00:16]} Nf8 {[%emt 0:05:06]} 35. Bd3 {[%emt 0:00:21]} Kd7 {[%emt 0:01:42]} 36. Ne2 {[%emt 0:00:08]} Ke6 {[%emt 0:01:30]} 37. Ng1 {[%emt 0:00:59]} Nd7 {[%emt 0:03:08]} 38. Nf3 {[%emt 0:00:13]} Nf8 {[%emt 0:02:01]} 39. Ng1 {[%emt 0:03:21]} Kd7 {[%emt 0:00:43]} 40. Ne2 {[%emt 0:00:10]} Ke6 {[%emt 0:00:35]} 41. Ng3 {[%emt 0:00:23]} Nd7 {[%emt 0:02:06]} 42. Ne2 {[%emt 0:00:59]} 1/2-1/2

[Event "1000GM Winter GM Norm-2 2024"]
[Site "Sunnyvale/"]
[Date "2024.01.04"]
[Round "3.1"]
[White "Rajaram, Rohan"]
[Black "Delgado Ramirez, Neuris"]
[Result "0-1"]
[ECO "E15"]
[WhiteElo "2151"]
[BlackElo "2517"]
[Annotator "TA"]
[PlyCount "74"]
[EventDate "2023.12.14"]
[EventType "schev"]
[EventCountry "USA"]
[SourceTitle "playchess.com"]
[Source "ChessBase"]
[SourceQuality "1"]
[TimeControl "5400+30"]

{[%evp 18,74,20,16,22,19,18,4,7,0,-8,-7,0,-17,0,-24,-19,-46,-56,-44,-41,-49,-16,-29,-21,-42,-50,-62,-60,-79,-69,-170,-81,-80,-77,-86,-56,-80,-32,-134,-113,-135,-126,-244,-251,-380,-364,-379,-375,-366,-367,-1030,-1018,-1129,-1125,-29996,-29997,-29997,519]} 1. d4 {[%emt 1:31:00]} Nf6 {[%emt 0:02:27]} 2. c4 {[%emt 0:00:00]} e6 {[%emt 0:00:22]} 3. Nf3 {[%emt 0:00:00]} b6 {[%emt 0:01:16]} 4. g3 {[%emt 0:00:00]} Ba6 {[%emt 0:00:06]} 5. Nbd2 {[%emt 0:00:00]} Bb4 {[%emt 0:00:14]} 6. Qc2 {[%emt 0:00:00]} Bb7 {[%emt 0:00:38]} 7. Bg2 {[%emt 0:00:00]} Be4 {[%emt 0:00:48]} 8. Qd1 {[%emt 0:00:00]} Bxd2+ {[%emt 0:01:40]} 9. Bxd2 {[%emt 0:00:00] has lost popularity (9.Qxd2).} O-O {[%emt 0:00:20]} 10. O-O {[%emt 0:00:00]} d6 {[%emt 0:00:16] E15: Queen's Indian: 4 g3 sidelines, 4 g3 Ba6 and 4 g3 Bb7 early deviations.} 11. Rc1 {[%emt 0:00:00]} Nbd7 {[%emt 0:00:29] [#]} 12. Bf4 $146 {[%emt 0:00:00]} ({Predecessor:} 12. Bh3 Bb7 13. Qb3 Qe7 14. Rfd1 Rfe8 15. Qa3 a5 16. Be3 h6 17. Bg2 Be4 18. h3 {½-½ Zhang,Z (2323)-Wang,H (2638) Shandong zt 3.5 2007 (1)}) 12... Re8 {[%emt 0:01:26] The position is equal.} 13. Qb3 {[%emt 0:00:00]} h6 {[%emt 0:02:19]} 14. Rfd1 {[%emt 0:00:00]} Qe7 {[%emt 0:01:38]} 15. Qc3 {[%emt 0:00:00]} a5 {[%emt 0:00:32]} 16. a3 {[%emt 0:00:00]} a4 {[%emt 0:00:27]} 17. Nd2 {[%emt 0:00:00]} Bxg2 {[%emt 0:01:55]} 18. Kxg2 {[%emt 0:00:00]} c5 {[%emt 0:04:46] White must now prevent ...cxd4.} 19. Be3 {[%emt 0:00:00]} Rec8 {[%emt 0:04:12]} 20. Nf3 {[%emt 0:00:00]} d5 {[%emt 0:01:09]} 21. cxd5 {[%emt 0:00:00]} exd5 {[%emt 0:00:12]} 22. Qc2 {[%emt 0:00:00]} Qe6 {[%emt 0:02:04]} 23. Bf4 {[%emt 0:00:00]} Ne4 {[%emt 0:04:09]} 24. Nd2 {[%emt 0:00:00]} (24. h4 $15) 24... Ndf6 {[%emt 0:06:20]} (24... cxd4 $19 {is more deadly.} 25. Qxc8+ Rxc8 26. Rxc8+ Nf8) 25. Nxe4 {[%emt 0:00:00]} dxe4 {[%emt 0:01:02]} 26. dxc5 {[%emt 0:00:00]} Rxc5 {[%emt 0:01:05]} 27. Qd2 {[%emt 0:00:00] White is weak on the light squares} Rd5 {[%emt 0:02:51] Black is more active.} (27... Rh5 $17 {( -> ...Qh3+)} 28. h4 g5) 28. Qc3 {[%emt 0:00:00]} ({Better is} 28. Qc2 $15) 28... Rh5 $1 $36 {[%emt 0:05:18][%mdl 2048] Keeping White busy.} 29. h4 {[%emt 0:00:00] [#]} Nd5 $1 {[%emt 0:00:21]} 30. Qd2 {[%emt 0:00:00] [#]} (30. Qc6 $17 {was worth a try.} Nxf4+ 31. gxf4 Qg4+ 32. Kf1) 30... Rd8 $1 $19 {[%emt 0:02:05][%cal Og7g5]} 31. Kg1 {[%emt 0:00:00] [#]} (31. Be3 {was necessary.}) 31... g5 $1 {[%emt 0:01:47][%cal Bg7g5,Bg5h4,Bh4g3][%mdl 544]} 32. Bc7 {[%emt 0:00:00]} (32. hxg5 $2 {gets mated.} Qh3 33. f3 Qh1+ 34. Kf2 Rh2#) 32... Rd7 {[%emt 0:01:19]} 33. Bb8 {[%emt 0:00:00]} gxh4 {[%emt 0:01:30]} 34. Qd4 $2 {[%emt 0:00:00]} (34. g4 Qxg4+ 35. Kh2) 34... Nf6 {[%emt 0:00:16]} 35. Qe3 {[%emt 0:00:00]} hxg3 {[%emt 0:01:15]} 36. Rxd7 {[%emt 0:03:07]} Rh1+ {[%emt 0:00:56][%mdl 64] Decoy, Back Rank} 37. Kxh1 {[%emt 0:00:18]} Qh3+ {[%emt 0:00:06][%mdl 32768] A cool game by Delgado Ramirez.   Weighted Error Value: White=0.71/Black=0.08 (flawless) . Loss on time!?} 0-1

[Event "1000GM Winter GM Norm-2 2024"]
[Site "Sunnyvale/"]
[Date "2024.01.04"]
[Round "3.3"]
[White "Wang, Isaac"]
[Black "Mosquera, Miguel"]
[Result "1-0"]
[ECO "D15"]
[WhiteElo "2316"]
[BlackElo "2365"]
[Annotator "RC"]
[PlyCount "71"]
[EventDate "2023.12.14"]
[EventType "schev"]
[EventCountry "USA"]
[SourceTitle "playchess.com"]
[Source "ChessBase"]
[SourceQuality "1"]
[TimeControl "5400+30"]

1. d4 {[%emt 0:01:03]} d5 {[%emt 0:08:19]} 2. c4 {[%emt 0:00:07]} c6 {[%emt 0:00:05]} 3. Nc3 {[%emt 0:00:06]} Nf6 {[%emt 0:00:28]} 4. Nf3 {[%emt 0:00:10]} dxc4 {[%emt 0:00:08]} 5. e4 {[%emt 0:01:05]} b5 {[%emt 0:00:30]} 6. Be2 {[%emt 0:00:11]} e6 {[%emt 0:00:29]} 7. a4 {[%emt 0:00:51]} b4 {[%emt 0:04:20]} 8. e5 {[%emt 0:00:21]} bxc3 {[%emt 0:21:03]} 9. exf6 {[%emt 0:00:09]} gxf6 {[%emt 0:00:30]} 10. bxc3 {[%emt 0:00:31]} c5 {[%emt 0:08:05]} 11. Bxc4 {[%emt 0:01:21]} Ba6 {[%emt 0:00:26]} 12. Bxa6 {[%emt 0:01:33]} Nxa6 {[%emt 0:00:01]} 13. O-O {[%emt 0:00:34]} Nc7 {[%emt 0:01:20]} 14. Qe2 {[%emt 0:02:27]} Bd6 {[%emt 0:10:34]} 15. dxc5 {[%emt 0:03:13]} Bxc5 16. Rd1 {[%emt 0:01:50]} Qc8 {[%emt 0:14:37]} 17. Qe4 {[%emt 0:03:14]} Qa6 {[%emt 0:08:21]} 18. Bf4 {[%emt 0:06:06]} Rc8 {[%emt 0:00:38]} 19. Rab1 {[%emt 0:10:15]} Be7 {[%emt 0:08:45]} 20. c4 {[%emt 0:00:51]} h5 {[%emt 0:01:08]} 21. h3 {[%emt 0:03:19]} e5 {[%emt 0:01:39]} 22. Be3 {[%emt 0:07:53]} Ne6 {[%emt 0:00:25]} 23. Nh4 {[%emt 0:05:48]} Rxc4 {[%emt 0:05:57]} 24. Qd3 {[%emt 0:07:30]} O-O {[%emt 0:01:37]} 25. Nf5 {[%emt 0:00:30]} Bd8 {[%emt 0:03:02]} 26. Bh6 {[%emt 0:00:55]} Bb6 {[%emt 0:00:31]} 27. Qg3+ {[%emt 0:21:18]} Kh7 {[%emt 0:00:03]} 28. Bxf8 {[%emt 0:02:41]} Rf4 {[%emt 0:00:07]} 29. Rxb6 {[%emt 0:06:54]} Qxb6 {[%emt 0:01:11]} 30. Rd7 {[%emt 0:04:05]} Qb1+ {[%emt 0:01:11]} 31. Kh2 {[%emt 0:00:29]} Ng5 {[%emt 0:00:00]} 32. Rxf7+ {[%emt 0:02:43]} Kg6 {[%emt 0:00:00]} 33. Nd6 {[%emt 0:01:06]} h4 {[%emt 0:00:00]} 34. Rg7+ {[%emt 0:00:32]} Kh5 {[%emt 0:00:00]} 35. Qe3 {[%emt 0:00:54]} Qc2 {[%emt 0:01:57]} 36. Nf7 {[%emt 0:02:17]} 1-0

[Event "1000GM Winter GM Norm-2 2024"]
[Site "Sunnyvale/"]
[Date "2024.01.04"]
[Round "3.4"]
[White "Amburgy, Ryan"]
[Black "Nagy, Gabor"]
[Result "1-0"]
[ECO "A17"]
[WhiteElo "2200"]
[BlackElo "2450"]
[Annotator "RC"]
[PlyCount "99"]
[EventDate "2023.12.14"]
[EventType "schev"]
[EventCountry "USA"]
[SourceTitle "playchess.com"]
[Source "ChessBase"]
[SourceQuality "1"]
[TimeControl "5400+30"]

1. Nf3 {[%emt 0:00:04]} Nf6 {[%emt 0:00:46]} 2. c4 {[%emt 0:00:07]} e6 {[%emt 0:01:20]} 3. Nc3 {[%emt 0:00:15]} Bb4 {[%emt 0:02:09]} 4. Qc2 {[%emt 0:00:31]} d6 {[%emt 0:02:18]} 5. a3 {[%emt 0:01:48]} Bxc3 {[%emt 0:00:24]} 6. Qxc3 {[%emt 0:00:05]} e5 {[%emt 0:01:32]} 7. g3 {[%emt 0:00:22]} O-O {[%emt 0:01:08]} 8. Bg2 {[%emt 0:00:08]} c5 {[%emt 0:00:41]} 9. b4 {[%emt 0:01:07]} e4 {[%emt 0:06:52]} 10. Ng5 {[%emt 0:01:06]} d5 {[%emt 0:00:32]} 11. O-O {[%emt 0:08:39]} h6 {[%emt 0:03:46]} 12. Nh3 {[%emt 0:00:06]} d4 {[%emt 0:00:52]} 13. Qb3 {[%emt 0:01:42]} Nc6 {[%emt 0:01:54]} 14. Nf4 {[%emt 0:04:05]} Re8 {[%emt 0:03:09]} 15. d3 {[%emt 0:03:13]} cxb4 {[%emt 0:08:06]} 16. axb4 {[%emt 0:00:22]} Bf5 {[%emt 0:00:13]} 17. Bb2 {[%emt 0:06:57]} exd3 {[%emt 0:04:31]} 18. exd3 {[%emt 0:00:36]} Qd7 {[%emt 0:00:39]} 19. Nd5 {[%emt 0:07:23]} Nxd5 {[%emt 0:01:23]} 20. cxd5 {[%emt 0:00:15]} Ne5 {[%emt 0:00:14]} 21. Bxd4 {[%emt 0:00:14]} Bh3 {[%emt 0:02:44]} 22. Rfe1 {[%emt 0:05:03]} Bxg2 {[%emt 0:00:55]} 23. Kxg2 {[%emt 0:00:06]} Ng6 {[%emt 0:01:53]} 24. Re4 {[%emt 0:10:45]} f5 {[%emt 0:01:33]} 25. Rxe8+ {[%emt 0:00:11]} Rxe8 {[%emt 0:53:26]} 26. f4 {[%emt 0:00:51]} b6 {[%emt 0:00:00]} 27. d6+ {[%emt 0:02:49]} Kh7 {[%emt 0:00:00]} 28. Qd5 {[%emt 0:00:05]} Re6 {[%emt 0:00:00]} 29. Be5 {[%emt 0:04:32]} Qf7 {[%emt 0:00:00]} 30. Kh1 {[%emt 0:01:28]} Nf8 {[%emt 0:00:00]} 31. Rc1 {[%emt 0:02:24]} Nd7 {[%emt 0:00:00]} 32. g4 {[%emt 0:06:14]} fxg4 {[%emt 0:00:00]} 33. Qe4+ {[%emt 0:00:13]} Rg6 {[%emt 0:00:00]} 34. Kg1 {[%emt 0:03:00]} a5 {[%emt 0:00:00]} 35. bxa5 {[%emt 0:01:48]} Nc5 {[%emt 0:00:00]} 36. Rxc5 {[%emt 0:00:59]} bxc5 {[%emt 0:00:00]} 37. a6 {[%emt 0:00:02]} Qa2 {[%emt 0:00:00]} 38. d7 {[%emt 0:00:39]} Qb1+ {[%emt 0:00:00]} 39. Kg2 {[%emt 0:00:10]} Qc2+ {[%emt 0:00:00]} 40. Kg3 {[%emt 0:00:05]} Qd1 {[%emt 0:00:00]} 41. d8=Q {[%emt 0:00:19]} Qg1+ {[%emt 0:00:00]} 42. Qg2 {[%emt 0:00:02]} Qe3+ {[%emt 0:00:00]} 43. Kh4 {[%emt 0:00:10]} c4 {[%emt 0:00:00]} 44. Qd4 {[%emt 0:00:53]} Qe1+ {[%emt 0:00:00]} 45. Qgf2 {[%emt 0:00:10]} Qa5 {[%emt 0:00:00]} 46. Kg3 {[%emt 0:00:21]} h5 {[%emt 0:00:00]} 47. h4 {[%emt 0:00:39]} gxh3+ {[%emt 0:00:00]} 48. Kxh3 {[%emt 0:00:03]} Qxa6 {[%emt 0:00:00]} 49. Qxc4 {[%emt 0:00:54]} Qa7 {[%emt 0:00:00]} 50. Qxa7 {[%emt 0:00:09]} 1-0

[Event "1000GM Winter GM Norm-2 2024"]
[Site "Sunnyvale/"]
[Date "2024.01.04"]
[Round "3.5"]
[White "Miezis, Normunds"]
[Black "Guo, Andrew"]
[Result "1-0"]
[ECO "A25"]
[WhiteElo "2419"]
[BlackElo "2255"]
[Annotator "RC"]
[PlyCount "105"]
[EventDate "2023.12.14"]
[EventType "schev"]
[EventCountry "USA"]
[SourceTitle "playchess.com"]
[Source "ChessBase"]
[SourceQuality "1"]
[TimeControl "5400+30"]

1. c4 {[%emt 0:00:08]} e5 {[%emt 0:00:04]} 2. Nc3 {[%emt 0:00:28]} Nc6 {[%emt 0:00:02]} 3. g3 {[%emt 0:02:14]} Bb4 {[%emt 0:00:03]} 4. Nd5 {[%emt 0:00:29]} Be7 {[%emt 0:01:02]} 5. Bg2 {[%emt 0:00:55]} Nf6 {[%emt 0:00:02]} 6. a3 {[%emt 0:04:11]} d6 {[%emt 0:00:45]} 7. e3 {[%emt 0:02:15]} O-O {[%emt 0:04:04]} 8. Ne2 {[%emt 0:01:12]} Bg4 {[%emt 0:03:42]} 9. h3 {[%emt 0:08:09]} Bf5 {[%emt 0:12:35]} 10. d3 {[%emt 0:02:07]} Qd7 {[%emt 0:03:40]} 11. g4 {[%emt 0:13:54]} Bg6 {[%emt 0:02:39]} 12. Nxe7+ {[%emt 0:08:33]} Qxe7 {[%emt 0:03:44]} 13. Nc3 {[%emt 0:01:48]} Nd7 14. h4 {[%emt 0:05:59]} h6 {[%emt 0:20:12]} 15. b4 {[%emt 0:06:22]} a6 {[%emt 0:06:18]} 16. g5 {[%emt 0:14:24]} hxg5 {[%emt 0:04:54]} 17. Nd5 {[%emt 0:04:24]} Qd8 {[%emt 0:00:18]} 18. e4 {[%emt 0:01:19]} Nd4 {[%emt 0:03:21]} 19. Bxg5 {[%emt 0:05:02]} f6 {[%emt 0:00:07]} 20. Be3 {[%emt 0:01:33]} c6 {[%emt 0:01:05]} 21. Bxd4 {[%emt 0:03:42]} cxd5 {[%emt 0:06:21]} 22. Be3 {[%emt 0:00:50]} d4 {[%emt 0:00:01]} 23. Bd2 {[%emt 0:00:48]} Qe7 {[%emt 0:05:57]} 24. h5 {[%emt 0:02:25]} Bh7 {[%emt 0:00:06]} 25. h6 {[%emt 0:01:42]} g6 {[%emt 0:00:39]} 26. Bh3 {[%emt 0:00:42]} Rfd8 {[%emt 0:02:54]} 27. Rc1 {[%emt 0:00:21]} Rac8 {[%emt 0:01:28]} 28. Qg4 {[%emt 0:02:20]} Kf7 {[%emt 0:00:58]} 29. Rg1 {[%emt 0:00:40]} Rc7 {[%emt 0:01:05]} 30. Qg3 {[%emt 0:01:06]} Rg8 {[%emt 0:01:11]} 31. f4 {[%emt 0:01:11]} exf4 {[%emt 0:04:05]} 32. Bxf4 {[%emt 0:00:10]} Ne5 {[%emt 0:00:19]} 33. Rf1 {[%emt 0:01:05]} g5 {[%emt 0:01:38]} 34. Bxe5 {[%emt 0:00:37]} Qxe5 {[%emt 0:01:02]} 35. Qxe5 {[%emt 0:00:34]} dxe5 {[%emt 0:00:02]} 36. Bg4 {[%emt 0:00:12]} Bg6 {[%emt 0:01:25]} 37. Ke2 {[%emt 0:00:12]} Rh8 {[%emt 0:00:39]} 38. Rh1 {[%emt 0:00:10]} Ke8 {[%emt 0:02:45]} 39. b5 {[%emt 0:00:54]} axb5 {[%emt 0:01:47]} 40. cxb5 {[%emt 0:00:07]} Rxc1 {[%emt 0:01:58]} 41. Rf1 Rd1 42. Rxd1 Rxh6 43. Rc1 Ke7 44. Rc7+ Kd6 45. Rxb7 Rh2+ 46. Ke1 Kc5 47. a4 Rh1+ 48. Kf2 Rh7 49. Rb8 Ra7 50. b6 Re7 51. a5 Kb5 52. b7 Ka6 {[%emt 0:06:00]} 53. Bc8 {[%emt 0:06:03]} 1-0

[Event "1000GM Winter GM Norm-2 2024"]
[Site "Sunnyvale/"]
[Date "2024.01.04"]
[Round "3.6"]
[White "Figueredo Losada, Leonel"]
[Black "Shivakumar, Shawnak"]
[Result "1-0"]
[ECO "D12"]
[WhiteElo "2381"]
[BlackElo "2307"]
[Annotator "RC"]
[PlyCount "83"]
[EventDate "2023.12.14"]
[EventType "schev"]
[EventCountry "USA"]
[SourceTitle "playchess.com"]
[Source "ChessBase"]
[SourceQuality "1"]
[TimeControl "5400+30"]

1. d4 {[%emt 0:04:24]} d5 {[%emt 0:03:35]} 2. c4 {[%emt 0:00:17]} c6 {[%emt 0:00:36]} 3. Nf3 {[%emt 0:00:12]} Nf6 {[%emt 0:00:14]} 4. e3 {[%emt 0:00:30]} Bf5 {[%emt 0:00:06]} 5. Nc3 {[%emt 0:00:10]} e6 {[%emt 0:00:03]} 6. Nh4 {[%emt 0:00:05]} Bg6 {[%emt 0:00:04]} 7. Bd2 {[%emt 0:00:29]} Nbd7 {[%emt 0:00:10]} 8. cxd5 {[%emt 0:00:11]} exd5 {[%emt 0:01:20]} 9. Nxg6 {[%emt 0:01:03]} hxg6 {[%emt 0:00:09]} 10. Qc2 {[%emt 0:01:10]} Bd6 {[%emt 0:03:42]} 11. O-O-O {[%emt 0:01:00]} Ng4 {[%emt 0:07:13]} 12. Be1 {[%emt 0:03:02]} Rxh2 {[%emt 0:02:23]} 13. Rxh2 {[%emt 0:00:09]} Nxh2 {[%emt 0:00:18]} 14. Be2 {[%emt 0:00:27]} Qg5 {[%emt 0:00:29]} 15. g3 {[%emt 0:00:05]} Nf6 {[%emt 0:12:33]} 16. Bd2 {[%emt 0:33:01]} Qf5 {[%emt 0:01:12]} 17. f3 {[%emt 0:03:51]} Qxc2+ {[%emt 0:09:48]} 18. Kxc2 {[%emt 0:00:03]} O-O-O {[%emt 0:00:28]} 19. g4 {[%emt 0:06:44]} g5 {[%emt 0:06:13]} 20. Rh1 {[%emt 0:00:24]} Rh8 {[%emt 0:06:22]} 21. Bf1 {[%emt 0:15:15]} Rh6 {[%emt 0:20:33]} 22. Bg2 {[%emt 0:00:05]} Nh7 {[%emt 0:01:51]} 23. e4 {[%emt 0:10:23]} Bf4 {[%emt 0:10:23]} 24. exd5 {[%emt 0:00:41]} Nf8 {[%emt 0:01:35]} 25. Ne4 {[%emt 0:03:42]} Ng6 {[%emt 0:02:13]} 26. Nxg5 {[%emt 0:02:14]} Bxd2 {[%emt 0:00:59]} 27. Kxd2 {[%emt 0:00:31]} Nf4 {[%emt 0:00:19]} 28. Nxf7 {[%emt 0:00:07]} Rh4 {[%emt 0:00:48]} 29. Nd6+ {[%emt 0:00:21]} Kc7 {[%emt 0:03:29]} 30. Nf5 {[%emt 0:00:06]} Nxg2 {[%emt 0:04:07]} 31. Nxh4 {[%emt 0:00:13]} Nxh4 {[%emt 0:00:01]} 32. f4 {[%emt 0:08:44]} cxd5 {[%emt 0:00:03]} 33. f5 {[%emt 0:02:24]} Kd6 {[%emt 0:00:35]} 34. Ke3 {[%emt 0:00:11]} N2f3 {[%emt 0:01:09]} 35. Kf4 {[%emt 0:00:14]} Ke7 {[%emt 0:02:24]} 36. Rh3 {[%emt 0:00:15]} Nxf5 {[%emt 0:00:30]} 37. gxf5 {[%emt 0:01:03]} Nxd4 {[%emt 0:00:06]} 38. Ke5 {[%emt 0:01:13]} Ne2 {[%emt 0:00:54]} 39. Re3 {[%emt 0:00:30]} Nc1 {[%emt 0:00:02]} 40. Rc3 {[%emt 0:00:11]} Nxa2 {[%emt 0:00:50]} 41. Rc7+ {[%emt 0:00:02]} Kf8 {[%emt 0:00:13]} 42. Rxb7 {[%emt 0:00:09]} 1-0

[Event "1000GM Winter GM Norm-2 2024"]
[Site "Sunnyvale/"]
[Date "2024.01.04"]
[Round "3.7"]
[White "Galyas, Miklos"]
[Black "Sathish, Pranav"]
[Result "1-0"]
[ECO "D02"]
[WhiteElo "2423"]
[BlackElo "2357"]
[Annotator "RC"]
[PlyCount "111"]
[EventDate "2023.12.14"]
[EventType "schev"]
[EventCountry "USA"]
[SourceTitle "playchess.com"]
[Source "ChessBase"]
[SourceQuality "1"]
[TimeControl "5400+30"]

1. d4 {[%emt 0:00:02]} d5 {[%emt 0:00:02]} 2. Nf3 {[%emt 1:31:28]} Nf6 3. Bf4 {[%emt 0:00:00]} Bf5 {[%emt 0:00:29]} 4. e3 {[%emt 0:00:00]} e6 {[%emt 0:00:09]} 5. Ne5 {[%emt 0:00:00]} Nbd7 {[%emt 0:03:58]} 6. g4 {[%emt 0:00:00]} Nxe5 {[%emt 0:04:39]} 7. gxf5 {[%emt 0:00:00]} Nc6 {[%emt 0:03:02]} 8. fxe6 {[%emt 0:00:00]} fxe6 {[%emt 0:00:02]} 9. Nc3 {[%emt 0:00:00]} Bd6 {[%emt 0:03:39]} 10. Bg3 {[%emt 0:00:00]} e5 {[%emt 0:07:03]} 11. Bg2 {[%emt 0:00:00]} exd4 {[%emt 0:02:00]} 12. exd4 {[%emt 0:00:00]} Qe7+ {[%emt 0:03:36]} 13. Qe2 {[%emt 0:00:00]} Qxe2+ {[%emt 0:01:39]} 14. Nxe2 {[%emt 0:00:00]} Rd8 {[%emt 0:02:50]} 15. O-O-O {[%emt 0:00:00]} Kf7 {[%emt 0:02:58]} 16. Nf4 Rhe8 17. c3 Nb8 18. Rde1 c6 {[%emt 1:03:24]} 19. Nd3 {[%emt 0:00:00]} Bxg3 {[%emt 0:00:00]} 20. hxg3 {[%emt 0:00:00]} Nbd7 {[%emt 0:00:00]} 21. f4 {[%emt 0:00:00]} Rxe1+ {[%emt 0:00:00]} 22. Rxe1 {[%emt 0:00:00]} Re8 {[%emt 0:00:00]} 23. Ne5+ {[%emt 0:00:00]} Kf8 {[%emt 0:00:00]} 24. Kd2 {[%emt 0:00:00]} Re7 {[%emt 0:00:00]} 25. Kd3 {[%emt 0:11:30]} g6 {[%emt 0:03:30]} 26. Bf3 {[%emt 0:00:30]} Kg7 {[%emt 0:00:30]} 27. g4 {[%emt 0:00:30]} h6 {[%emt 0:00:30]} 28. Re2 {[%emt 0:00:30]} g5 {[%emt 0:00:00]} 29. f5 {[%emt 0:00:00]} Nf8 {[%emt 0:01:00]} 30. b3 {[%emt 0:01:00]} N6d7 {[%emt 0:00:30]} 31. c4 {[%emt 0:00:00]} dxc4+ {[%emt 0:00:00]} 32. bxc4 {[%emt 0:00:00]} Kf6 {[%emt 0:01:00]} 33. Nxd7+ {[%emt 0:00:00]} Nxd7 {[%emt 0:00:30]} 34. Rb2 {[%emt 0:02:00]} Nb6 {[%emt 0:00:30]} 35. c5 {[%emt 0:00:00]} Nd5 {[%emt 0:00:30]} 36. Bxd5 {[%emt 0:00:00]} cxd5 {[%emt 0:00:30]} 37. Rh2 {[%emt 0:00:00]} Rh7 {[%emt 0:00:30]} 38. Rh5 {[%emt 0:02:00]} Rh8 {[%emt 0:00:00]} 39. a4 {[%emt 0:00:30]} Kg7 {[%emt 0:00:00]} 40. a5 {[%emt 0:00:30]} Re8 {[%emt 0:01:30]} 41. Rh1 {[%emt 0:00:30]} Re4 {[%emt 0:00:30]} 42. a6 {[%emt 0:00:30]} bxa6 {[%emt 0:00:00]} 43. c6 {[%emt 0:00:30]} Re8 {[%emt 0:00:00]} 44. Ra1 {[%emt 0:00:30]} Rc8 {[%emt 0:01:30]} 45. Rxa6 {[%emt 0:00:00]} Rc7 {[%emt 0:00:30]} 46. Kc3 {[%emt 0:01:00]} h5 {[%emt 0:00:00]} 47. gxh5 {[%emt 0:00:00]} Kh6 {[%emt 0:00:00]} 48. Kb4 {[%emt 0:01:00]} Kxh5 {[%emt 0:00:00]} 49. Kc5 {[%emt 0:00:00]} Kg4 {[%emt 0:00:00]} 50. Kxd5 {[%emt 0:00:00]} Kxf5 {[%emt 0:00:00]} 51. Kc5 {[%emt 0:00:00]} g4 {[%emt 0:00:00]} 52. d5 {[%emt 0:00:00]} g3 {[%emt 0:00:00]} 53. d6 {[%emt 0:00:00]} g2 {[%emt 0:00:00]} 54. Ra1 {[%emt 0:00:00]} Rh7 {[%emt 0:00:00]} 55. c7 {[%emt 0:00:00]} Rh8 {[%emt 0:00:00]} 56. d7 {[%emt 0:00:00]} 1-0